fUSD/lending_fUSD_20250415
["ID","MTS","AMOUNT","RATE_DAILY","PERIOD"]
[358069617,1744686639637,-535.42283788,0.00017897,2]
[358069618,1744686639646,-500.0,0.00017897,2]
[358069619,1744686639655,-500.0,0.00017897,2]
[358069620,1744686639665,-500.0,0.00017897,2]
[358069621,1744686639674,-500.0,0.00017897,2]
[358069622,1744686639683,-500.0,0.00017897,2]
[358069623,1744686639692,-500.0,0.00017897,2]
[358069624,1744686639701,-500.0,0.00017897,2]
[358069625,1744686639711,-500.0,0.00017897,2]
[358069626,1744686639720,-500.0,0.00017897,2]
[358069627,1744686639729,-530.20173528,0.00017897,2]
[358069628,1744686639738,-238.67354013,0.00017897,2]
[358069629,1744686639748,-500.0,0.00017897,2]
[358069630,1744686639757,-500.0,0.00017897,2]
[358069631,1744686639767,-500.0,0.00017897,2]
[358069632,1744686639776,-500.0,0.00017897,2]
[358069633,1744686639785,-500.0,0.00017897,2]
[358069634,1744686639794,-500.0,0.00017897,2]
[358069635,1744686639803,-265.92125932,0.00017897,2]
[358069636,1744686639813,-524.72186931,0.00017897,2]
[358069637,1744686639822,-500.0,0.00017897,2]
[358069638,1744686639832,-439.53,0.00017897,2]
[358069639,1744686639841,-500.0,0.00017897,2]
[358069640,1744686639850,-249.778655,0.00017897,2]
[358069641,1744686639859,-500.0,0.00017897,2]
[358069642,1744686639868,-520.61880361,0.00017897,2]
[358069643,1744686639878,-500.0,0.00017897,2]
[358069644,1744686639888,-500.0,0.00017897,2]
[358069645,1744686639898,-500.0,0.00017897,2]
[358069646,1744686639908,-500.0,0.00017897,2]
[358069647,1744686639917,-379.1146313,0.00017897,2]
[358069648,1744686639926,-500.0,0.00017897,2]
[358069649,1744686639935,-500.0,0.00017897,2]
[358069650,1744686639943,-402.14213213,0.00017897,2]
[358069651,1744686639952,-500.0,0.00017897,2]
[358069652,1744686639961,-513.07080944,0.00017897,2]
[358069653,1744686639970,-500.0,0.00017897,2]
[358069654,1744686639980,-500.0,0.00017897,2]
[358069655,1744686639990,-500.0,0.00017897,2]
[358069656,1744686639999,-527.77619135,0.00017897,2]
[358069657,1744686640009,-500.0,0.00017897,2]
[358069658,1744686640019,-500.0,0.00017897,2]
[358069659,1744686640029,-526.77417563,0.00017897,2]
[358069660,1744686640039,-496.33427459,0.00017897,2]
[358069661,1744686640050,-500.0,0.00017897,2]
[358069662,1744686640059,-500.0,0.00017897,2]
[358069663,1744686640069,-500.0,0.00017897,2]
[358069664,1744686640078,-500.0,0.00017897,2]
[358069665,1744686640089,-291.14461925,0.00017897,2]
[358069666,1744686640099,-500.0,0.00017897,2]
[358069667,1744686640108,-500.0,0.00017897,2]
[358069668,1744686640120,-500.0,0.00017897,2]
[358069669,1744686640130,-238.89,0.00017897,2]
[358069670,1744686640139,-500.0,0.00017897,2]
[358069671,1744686640149,-500.0,0.00017897,2]
[358069672,1744686640158,-500.0,0.00017897,2]
[358069673,1744686640168,-500.0,0.00017897,2]
[358069674,1744686640178,-500.0,0.00017897,2]
[358069675,1744686640189,-500.0,0.00017897,2]
[358069676,1744686640199,-500.0,0.00017897,2]
[358069677,1744686640209,-500.0,0.00017897,2]
[358069678,1744686640219,-500.0,0.00017897,2]
[358069679,1744686640229,-500.0,0.00017897,2]
[358069680,1744686640238,-500.0,0.00017897,2]
[358069681,1744686640248,-198.72,0.00017897,2]
[358069682,1744686640258,-500.0,0.00017897,2]
[358069683,1744686640268,-500.0,0.00017897,2]
[358069684,1744686640278,-500.0,0.00017897,2]
[358069685,1744686640288,-500.0,0.00017897,2]
[358069686,1744686640297,-509.53163894,0.00017897,2]
[358069687,1744686640306,-500.0,0.00017897,2]
[358069688,1744686640316,-500.0,0.00017897,2]
[358069689,1744686640325,-593.52245218,0.00017897,2]
[358069690,1744686640335,-500.0,0.00017897,2]
[358069691,1744686640345,-500.0,0.00017897,2]
[358069692,1744686640354,-500.0,0.00017897,2]
[358069693,1744686640363,-500.0,0.00017897,2]
[358069694,1744686640373,-352.72986804,0.00017897,2]
[358069695,1744686640383,-500.0,0.00017897,2]
[358069696,1744686640392,-500.0,0.00017897,2]
[358069697,1744686640402,-594.17581326,0.00017897,2]
[358069698,1744686640411,-500.0,0.00017897,2]
[358069699,1744686640421,-500.0,0.00017897,2]
[358069700,1744686640431,-500.0,0.00017897,2]
[358069701,1744686640441,-516.42659789,0.00017897,2]
[358069702,1744686640450,-513.28104484,0.00017897,2]
[358069703,1744686640461,-500.0,0.00017897,2]
[358069704,1744686640471,-519.50842793,0.00017897,2]
[358069705,1744686640480,-500.0,0.00017897,2]
[358069706,1744686640490,-500.0,0.00017897,2]
[358069707,1744686640499,-187.62,0.00017897,2]
[358069708,1744686640507,-500.0,0.00017897,2]
[358069709,1744686640516,-500.0,0.00017897,2]
[358069710,1744686640526,-421.74311857,0.00017897,2]
[358069711,1744686640536,-500.0,0.00017897,2]
[358069712,1744686640546,-500.0,0.00017897,2]
[358069713,1744686640557,-500.0,0.00017897,2]
[358069714,1744686640569,-522.29726856,0.00017897,2]
[358069715,1744686640578,-500.0,0.00017897,2]
[358069716,1744686640589,-500.0,0.00017897,2]
[358069717,1744686640599,-247.49145039,0.00017897,2]
[358069718,1744686640609,-500.0,0.00017897,2]
[358069719,1744686640619,-529.16106802,0.00017897,2]
[358069720,1744686640629,-534.64694181,0.00017897,2]
[358069721,1744686640638,-500.0,0.00017897,2]
[358069722,1744686640648,-562.80338052,0.00017897,2]
[358069723,1744686640657,-500.0,0.00017897,2]
[358069724,1744686640667,-470.0,0.00017897,2]
[358069725,1744686640677,-500.0,0.00017897,2]
[358069726,1744686640687,-500.0,0.00017897,2]
[358069727,1744686640697,-500.0,0.00017897,2]
[358069728,1744686640707,-500.0,0.00017897,2]
[358069729,1744686640717,-640.32,0.00017897,2]
[358069730,1744686640726,-6807.89,0.00017897,2]
[358069731,1744686640736,-6807.89,0.00017897,2]
[358069732,1744686640745,-6807.89,0.00017897,2]
[358069733,1744686640755,-6807.89,0.00017897,2]
[358069734,1744686640765,-6807.89,0.00017897,2]
[358069735,1744686640774,-6807.89,0.00017897,2]
[358069736,1744686640784,-6807.89,0.00017897,2]
[358069737,1744686640794,-6807.89,0.00017897,2]
[358069738,1744686640803,-6807.89,0.00017897,2]
[358069739,1744686640813,-500.0,0.00017897,2]
[358069740,1744686640823,-6807.89,0.00017897,2]
[358069741,1744686640832,-500.0,0.00017897,2]
[358069742,1744686640842,-6807.89,0.00017897,2]
[358069743,1744686640852,-500.0,0.00017897,2]
[358069744,1744686640872,-6807.89,0.00017897,2]
[358069745,1744686640882,-500.0,0.00017897,2]
[358069746,1744686640892,-6807.89,0.00017897,2]
[358069747,1744686640901,-500.0,0.00017897,2]
[358069748,1744686640911,-6807.89,0.00017897,2]
[358069749,1744686640921,-500.0,0.00017897,2]
[358069750,1744686640932,-500.0,0.00017897,2]
[358069751,1744686640942,-6807.89,0.00017897,2]
[358069752,1744686640951,-6807.89,0.00017897,2]
[358069753,1744686640961,-595.35,0.00017897,2]
[358069754,1744686640971,-6807.89,0.00017897,2]
[358069755,1744686640980,-6807.89,0.00017897,2]
[358069756,1744686640991,-6807.89,0.00017897,2]
[358069757,1744686641001,-6807.89,0.00017897,2]
[358069758,1744686641010,-500.0,0.00017897,2]
[358069759,1744686641020,-6807.89,0.00017897,2]
[358069760,1744686641031,-6807.89,0.00017897,2]
[358069761,1744686641043,-6808.04500109,0.00017897,2]
[358069762,1744686641052,-578.19612628,0.00017897,2]
[358069763,1744686641062,-478.38,0.00017897,2]
[358069764,1744686641072,-500.0,0.00017897,2]
[358069765,1744686641083,-500.0,0.00017897,2]
[358069766,1744686641092,-420.4,0.00017897,2]
[358069767,1744686641102,-535.46742054,0.00017897,2]
[358069768,1744686641112,-566.52,0.00017897,2]
[358069769,1744686641123,-500.0,0.00017897,2]
[358069770,1744686641133,-500.0,0.00017897,2]
[358069771,1744686641142,-500.0,0.00017897,2]
[358069772,1744686641151,-500.0,0.00017897,2]
[358069773,1744686641161,-500.0,0.00017897,2]
[358069774,1744686641170,-500.0,0.00017897,2]
[358069775,1744686641180,-500.0,0.00017897,2]
[358069776,1744686641189,-500.0,0.00017897,2]
[358069777,1744686641199,-500.0,0.00017897,2]
[358069778,1744686641210,-500.0,0.00017897,2]
[358069779,1744686641220,-500.0,0.00017897,2]
[358069780,1744686641229,-500.0,0.00017897,2]
[358069781,1744686641239,-500.0,0.00017897,2]
[358069782,1744686641249,-500.0,0.00017897,2]
[358069783,1744686641259,-500.0,0.00017897,2]
[358069784,1744686641269,-500.0,0.00017897,2]
[358069785,1744686641278,-500.0,0.00017897,2]
[358069786,1744686641288,-500.0,0.00017897,2]
[358069787,1744686641298,-500.0,0.00017897,2]
[358069788,1744686641308,-500.0,0.00017897,2]
[358069789,1744686641317,-500.0,0.00017897,2]
[358069790,1744686641328,-311.43,0.00017897,2]
[358069791,1744686641339,-517.29040362,0.00017897,2]
[358069792,1744686641348,-500.0,0.00017897,2]
[358069793,1744686641359,-500.0,0.00017897,2]
[358069794,1744686641368,-450.19,0.00017897,2]
[358069795,1744686641378,-500.0,0.00017897,2]
[358069796,1744686641387,-500.0,0.00017897,2]
[358069797,1744686641399,-500.0,0.00017897,2]
[358069798,1744686641409,-213.48,0.00017897,2]
[358069799,1744686641419,-500.0,0.00017897,2]
[358069800,1744686641428,-500.0,0.00017897,2]
[358069801,1744686641622,-508.65,0.00017897,2]
[358069802,1744686641633,-510.74699165,0.00017897,2]
[358069803,1744686641642,-500.0,0.00017897,2]
[358069804,1744686641657,-500.0,0.00017897,2]
[358069805,1744686641666,-500.0,0.00017897,2]
[358069806,1744686641676,-500.0,0.00017897,2]
[358069807,1744686641686,-500.0,0.00017897,2]
[358069808,1744686641696,-500.0,0.00017897,2]
[358069809,1744686641705,-500.0,0.00017897,2]
[358069810,1744686641715,-500.0,0.00017897,2]
[358069811,1744686641725,-500.0,0.00017897,2]
[358069812,1744686641735,-500.0,0.00017897,2]
[358069813,1744686641744,-500.0,0.00017897,2]
[358069814,1744686641754,-500.0,0.00017897,2]
[358069815,1744686641764,-500.0,0.00017897,2]
[358069816,1744686641773,-1074.13,0.00017897,2]
[358069817,1744686641782,-252.86,0.00017897,2]
[358069818,1744686641792,-1074.13,0.00017897,2]
[358069819,1744686641801,-1074.13,0.00017897,2]
[358069820,1744686641809,-1074.13,0.00017897,2]
[358069821,1744686641817,-1074.13,0.00017897,2]
[358069822,1744686641826,-1074.13,0.00017897,2]
[358069823,1744686641834,-1074.13,0.00017897,2]
[358069824,1744686641842,-1074.13,0.00017897,2]
[358069825,1744686641851,-1074.13,0.00017897,2]
[358069826,1744686641861,-1074.13,0.00017897,2]
[358069827,1744686641870,-1074.13,0.00017897,2]
[358069828,1744686641880,-1074.13,0.00017897,2]
[358069829,1744686641890,-1074.13,0.00017897,2]
[358069830,1744686641899,-1074.13,0.00017897,2]
[358069831,1744686641909,-1074.13,0.00017897,2]
[358069832,1744686641918,-1074.13,0.00017897,2]
[358069833,1744686641928,-1074.13,0.00017897,2]
[358069834,1744686641937,-988.56878841,0.00017897,2]
[358069835,1744686641959,-85.56121159,0.00017897,2]
[358069836,1744686641968,-1074.13,0.00017897,2]
[358069837,1744686641978,-1074.13,0.00017897,2]
[358069838,1744686641987,-1074.13,0.00017897,2]
[358069839,1744686641996,-1074.13,0.00017897,2]
[358069840,1744686642006,-1074.31,0.00017897,2]
[358069841,1744686642015,-500.0,0.00017897,2]
[358069842,1744686642025,-500.0,0.00017897,2]
[358069843,1744686642035,-500.0,0.00017897,2]
[358069844,1744686642046,-616.6489828,0.00017897,2]
[358069845,1744686642055,-500.0,0.00017897,2]
[358069846,1744686642065,-500.0,0.00017897,2]
[358069847,1744686642074,-500.0,0.00017897,2]
[358069848,1744686642087,-500.0,0.00017897,2]
[358069849,1744686642097,-150.0,0.00017897,2]
[358069850,1744686642106,-150.0,0.00017897,2]
[358069851,1744686642117,-150.0,0.00017897,2]
[358069852,1744686642126,-500.0,0.00017897,2]
[358069853,1744686642135,-162.02699016,0.00017897,2]
[358069854,1744686642144,-509.05605198,0.00017897,2]
[358069855,1744686642154,-500.0,0.00017897,2]
[358069856,1744686642163,-500.0,0.00017897,2]
[358069857,1744686642172,-500.0,0.00017897,2]
[358069858,1744686642181,-500.0,0.00017897,2]
[358069859,1744686642191,-500.0,0.00017897,2]
[358069860,1744686642201,-523.70015299,0.00017897,2]
[358069861,1744686642211,-246.61741501,0.00017897,2]
[358069862,1744686642220,-500.0,0.00017897,2]
[358069863,1744686642230,-500.0,0.00017897,2]
[358069864,1744686642239,-500.0,0.00017897,2]
[358069865,1744686642249,-531.78709112,0.00017897,2]
[358069866,1744686642258,-525.00246314,0.00017897,2]
[358069867,1744686642268,-500.0,0.00017897,2]
[358069868,1744686642277,-500.0,0.00017897,2]
[358069869,1744686642286,-500.0,0.00017897,2]
[358069870,1744686642296,-500.0,0.00017897,2]
[358069872,1744686642305,-237.0,0.00017897,2]
[358069874,1744686642314,-276.734,0.00017897,2]
[358069875,1744686642323,-186.473,0.00017897,2]
[358069877,1744686642334,-150.397,0.00017897,2]
[358069878,1744686642344,-150.0,0.00017897,2]
[358069879,1744686642353,-151.093,0.00017897,2]
[358069880,1744686642363,-250.0,0.00017897,2]
[358069881,1744686642373,-181.948,0.00017897,2]
[358069882,1744686642382,-156.459,0.00017897,2]
[358069883,1744686642393,-172.214,0.00017897,2]
[358069884,1744686642402,-257.86,0.00017897,2]
[358069886,1744686642412,-1417.174,0.00017897,2]
[358069888,1744686642421,-1904.0,0.00017898,2]
[358069890,1744686642431,-9327.84561849,0.00017898,2]
[358069898,1744686642502,-500.0,0.00017896,2]
[358069901,1744686642515,-39.91521306,0.00017897,2]
[358069903,1744686642527,-460.08478694,0.00017897,2]
[358069905,1744686642536,-284.88368649,0.00017897,2]
[358069906,1744686642558,-1123.0,0.00017895,2]
[358069907,1744686642568,-215.11631351,0.00017897,2]
[358069908,1744686642577,-246732.72548685,0.00017898,2]
[358069909,1744686642586,-786.59932277,0.00017898,2]
[358069910,1744686642596,-630813.81601171,0.00017898,2]
[358069911,1744686643504,-746.61741501,0.00017898,2]
[358069918,1744686645855,-500.0,0.00017896,2]
[358069919,1744686645865,-438.61755409,0.00017898,2]
[358069976,1744686670152,373.27,0.00017061,2]
[358069977,1744686681245,1003.59265339,0.00025,30]
[358069978,1744686722183,-339.6907082,0.0001777,2]
[358069979,1744686754235,55.38824547,0.0001777,2]
[358069980,1744686781022,271.99790724,0.00017696,2]
[358069981,1744686923141,776.72666492,0.000175,3]
[358069982,1744686941590,200.0,0.00016996,7]
[358069983,1744687140803,-218.6783,0.00017579,2]
[358069984,1744687177962,-218.04887665,0.00017579,2]
[358069985,1744687177984,-31.95112335,0.00017597,2]
[358069986,1744687179587,-212.77920189,0.00017597,2]
[358069987,1744687188903,-5.26967476,0.00017597,2]
[358069988,1744687188927,-457.50952713,0.00017598,2]
[358069989,1744687228125,-250.0,0.00017598,2]
[358069990,1744687273875,280.58,0.00016932,2]
[358069991,1744687274557,-172.0,0.00017598,2]
[358069992,1744687382475,-287.63995,0.00017598,2]
[358069993,1744687482116,10220.23,0.0002,3]
[358069994,1744687484130,1000.0,0.00016895,2]
[358069995,1744687552034,530.7,0.00014978,2]
[358069996,1744687552246,530.7,0.00017241,2]
[358069998,1744687680413,-202.1704,0.00017598,2]
[358069999,1744687699591,-5.32188021,0.00017598,2]
[358070000,1744687699614,-226.85688157,0.00017624,2]
[358070001,1744687721664,499.999999,0.000151,2]
[358070002,1744687722322,-162.245122,0.00017624,2]
[358070003,1744687803342,2000.0,0.0002,4]
[358070015,1744687831762,-467.21693756,0.00017697,2]
[358070055,1744687838135,-232.98046212,0.00017697,2]
[358070056,1744687838145,-172.0,0.00017697,2]
[358070057,1744687838154,-332.5277061,0.00017762,2]
[358070059,1744687838373,-500.0,0.00017781,2]
[358070060,1744687838382,-700.19739967,0.00017794,2]
[358070061,1744687838392,-354.5531591,0.00017796,2]
[358070062,1744687838401,-300.0,0.00017796,2]
[358070064,1744687838410,-300.0,0.00017796,2]
[358070065,1744687838419,-354.55315904,0.00017796,2]
[358070066,1744687838428,-354.55315904,0.00017796,2]
[358070067,1744687838437,-354.55315904,0.00017797,2]
[358070068,1744687838446,-354.55315904,0.00017797,2]
[358070069,1744687838455,-2360.1872,0.00017797,2]
[358070070,1744687838468,-169.79473222,0.00017797,2]
[358070072,1744687838477,-354.55315904,0.00017797,2]
[358070073,1744687838486,-354.55315904,0.00017797,2]
[358070074,1744687838496,-354.55315904,0.00017798,2]
[358070075,1744687838506,-354.55315904,0.00017798,2]
[358070076,1744687838515,-3127.77199542,0.00017798,2]
[358070077,1744687838524,-354.55315904,0.00017798,2]
[358070078,1744687838532,-613.70311639,0.00017856,2]
[358070079,1744687838543,-204.13980739,0.00017873,2]
[358070080,1744687838551,-241.7,0.00017886,2]
[358070081,1744687838560,-300.0,0.00017889,2]
[358070082,1744687838569,-114042.39498035,0.0001789,2]
[358070083,1744687838578,-1248.304569,0.00017894,2]
[358070084,1744687838587,-1248.304569,0.00017894,2]
[358070085,1744687838596,-168.882586,0.00017894,2]
[358070086,1744687838605,-160.219155,0.00017894,2]
[358070087,1744687838614,-484.177,0.00017895,2]
[358070088,1744687838623,-292.64859776,0.00017895,2]
[358070089,1744687838632,-500.0,0.00017896,2]
[358070090,1744687838641,-500.0,0.00017896,2]
[358070091,1744687838650,-500.0,0.00017896,2]
[358070092,1744687838659,-500.0,0.00017896,2]
[358070093,1744687838668,-500.0,0.00017896,2]
[358070094,1744687838677,-516.31536748,0.00017896,2]
[358070095,1744687838686,-500.0,0.00017896,2]
[358070096,1744687838695,-500.0,0.00017896,2]
[358070097,1744687838704,-500.0,0.00017896,2]
[358070098,1744687838713,-500.0,0.00017896,2]
[358070099,1744687838722,-500.0,0.00017896,2]
[358070100,1744687838730,-528.00362924,0.00017896,2]
[358070101,1744687838741,-500.0,0.00017896,2]
[358070102,1744687838750,-500.0,0.00017896,2]
[358070103,1744687838759,-500.0,0.00017896,2]
[358070104,1744687838767,-500.0,0.00017896,2]
[358070105,1744687838776,-553.52533242,0.00017896,2]
[358070106,1744687838785,-500.0,0.00017896,2]
[358070107,1744687838794,-563.25642255,0.00017896,2]
[358070108,1744687838803,-500.0,0.00017896,2]
[358070109,1744687838814,-500.0,0.00017896,2]
[358070110,1744687838823,-500.0,0.00017896,2]
[358070111,1744687838832,-500.0,0.00017896,2]
[358070112,1744687838840,-500.0,0.00017896,2]
[358070113,1744687838849,-500.0,0.00017896,2]
[358070114,1744687838859,-500.0,0.00017896,2]
[358070115,1744687838867,-500.0,0.00017896,2]
[358070116,1744687838876,-500.0,0.00017896,2]
[358070117,1744687838885,-500.0,0.00017896,2]
[358070118,1744687838894,-500.0,0.00017896,2]
[358070119,1744687838903,-500.0,0.00017896,2]
[358070120,1744687838911,-543.32015845,0.00017896,2]
[358070121,1744687838920,-500.0,0.00017896,2]
[358070122,1744687838929,-400.51392281,0.00017896,2]
[358070123,1744687838939,-217.20616563,0.00017896,2]
[358070124,1744687838947,-500.0,0.00017896,2]
[358070125,1744687838956,-500.0,0.00017896,2]
[358070126,1744687838965,-500.0,0.00017896,2]
[358070127,1744687838974,-199.69279032,0.00017896,2]
[358070128,1744687838983,-500.0,0.00017896,2]
[358070129,1744687838993,-579.09015654,0.00017896,2]
[358070130,1744687839002,-500.0,0.00017896,2]
[358070131,1744687839011,-500.0,0.00017896,2]
[358070132,1744687839020,-500.0,0.00017896,2]
[358070133,1744687839029,-500.0,0.00017896,2]
[358070134,1744687839037,-500.0,0.00017896,2]
[358070135,1744687839046,-505.3451314,0.00017896,2]
[358070136,1744687839055,-500.0,0.00017896,2]
[358070137,1744687839063,-500.0,0.00017896,2]
[358070138,1744687839072,-500.0,0.00017896,2]
[358070139,1744687839081,-500.0,0.00017896,2]
[358070140,1744687839090,-500.0,0.00017896,2]
[358070141,1744687839099,-500.0,0.00017896,2]
[358070142,1744687839108,-500.0,0.00017896,2]
[358070143,1744687839117,-545.42474336,0.00017896,2]
[358070144,1744687839127,-500.0,0.00017896,2]
[358070145,1744687839136,-500.0,0.00017896,2]
[358070146,1744687839145,-500.0,0.00017896,2]
[358070147,1744687839154,-500.0,0.00017896,2]
[358070148,1744687839163,-539.59161975,0.00017896,2]
[358070149,1744687839173,-500.0,0.00017896,2]
[358070150,1744687839181,-629.11418885,0.00017896,2]
[358070151,1744687839191,-500.0,0.00017896,2]
[358070152,1744687839201,-500.0,0.00017896,2]
[358070153,1744687839211,-500.0,0.00017896,2]
[358070154,1744687839220,-500.0,0.00017896,2]
[358070155,1744687839229,-200.49400343,0.00017896,2]
[358070156,1744687839238,-500.0,0.00017896,2]
[358070157,1744687839248,-500.0,0.00017896,2]
[358070158,1744687839257,-500.0,0.00017896,2]
[358070159,1744687839266,-541.49473023,0.00017896,2]
[358070160,1744687839275,-500.0,0.00017896,2]
[358070161,1744687839284,-251.30621151,0.00017896,2]
[358070162,1744687839293,-500.0,0.00017896,2]
[358070163,1744687839302,-500.0,0.00017896,2]
[358070164,1744687839311,-500.0,0.00017896,2]
[358070165,1744687839320,-289.07110364,0.00017896,2]
[358070166,1744687839329,-400.0,0.00017896,2]
[358070167,1744687839338,-500.0,0.00017896,2]
[358070168,1744687839347,-500.0,0.00017896,2]
[358070169,1744687839356,-500.0,0.00017896,2]
[358070170,1744687839366,-500.0,0.00017896,2]
[358070171,1744687839375,-500.0,0.00017896,2]
[358070172,1744687839384,-500.0,0.00017896,2]
[358070173,1744687839405,-500.0,0.00017896,2]
[358070174,1744687839415,-2740.0,0.00017896,2]
[358070175,1744687839424,-500.0,0.00017896,2]
[358070176,1744687839434,-500.0,0.00017896,2]
[358070177,1744687839444,-500.0,0.00017896,2]
[358070178,1744687839454,-500.0,0.00017896,2]
[358070179,1744687839466,-439.0,0.00017896,2]
[358070180,1744687839476,-500.0,0.00017896,2]
[358070181,1744687839486,-500.0,0.00017896,2]
[358070182,1744687839496,-500.0,0.00017896,2]
[358070183,1744687839508,-500.0,0.00017896,2]
[358070184,1744687839518,-500.0,0.00017896,2]
[358070185,1744687839527,-500.0,0.00017896,2]
[358070186,1744687839537,-500.0,0.00017896,2]
[358070187,1744687839547,-500.0,0.00017896,2]
[358070188,1744687839556,-500.0,0.00017896,2]
[358070189,1744687839566,-500.0,0.00017896,2]
[358070190,1744687839575,-500.0,0.00017896,2]
[358070191,1744687839585,-171.62899072,0.00017896,2]
[358070192,1744687839594,-500.0,0.00017896,2]
[358070193,1744687839604,-500.0,0.00017896,2]
[358070194,1744687839613,-150.0,0.00017896,2]
[358070195,1744687839623,-500.0,0.00017896,2]
[358070196,1744687839632,-500.0,0.00017896,2]
[358070197,1744687839641,-150.0,0.00017896,2]
[358070198,1744687839651,-500.0,0.00017896,2]
[358070199,1744687839659,-500.0,0.00017896,2]
[358070200,1744687839669,-500.0,0.00017896,2]
[358070201,1744687839678,-500.0,0.00017896,2]
[358070202,1744687839687,-500.0,0.00017896,2]
[358070203,1744687839696,-586.04063651,0.00017896,2]
[358070205,1744687839706,-500.0,0.00017896,2]
[358070207,1744687839715,-500.0,0.00017896,2]
[358070210,1744687839725,-500.0,0.00017896,2]
[358070211,1744687839735,-500.0,0.00017896,2]
[358070213,1744687839745,-500.0,0.00017896,2]
[358070214,1744687839754,-531.46,0.00017896,2]
[358070215,1744687839764,-567.67426075,0.00017896,2]
[358070216,1744687839773,-500.0,0.00017896,2]
[358070217,1744687839783,-546.39890019,0.00017896,2]
[358070218,1744687839792,-500.0,0.00017896,2]
[358070219,1744687839801,-500.0,0.00017896,2]
[358070220,1744687839810,-500.0,0.00017896,2]
[358070221,1744687839820,-478.38,0.00017896,2]
[358070222,1744687839830,-500.0,0.00017896,2]
[358070223,1744687839839,-13800.24,0.00017896,2]
[358070224,1744687839848,-500.0,0.00017896,2]
[358070225,1744687839858,-525.62202961,0.00017896,2]
[358070226,1744687839867,-500.0,0.00017896,2]
[358070227,1744687839876,-500.0,0.00017896,2]
[358070228,1744687839886,-500.0,0.00017896,2]
[358070229,1744687839895,-500.0,0.00017896,2]
[358070230,1744687839905,-500.0,0.00017896,2]
[358070231,1744687839914,-500.0,0.00017896,2]
[358070232,1744687839923,-500.0,0.00017896,2]
[358070233,1744687839932,-500.0,0.00017896,2]
[358070234,1744687839942,-500.0,0.00017896,2]
[358070235,1744687839951,-498.00508997,0.00017896,2]
[358070236,1744687839960,-500.0,0.00017896,2]
[358070237,1744687839970,-500.0,0.00017896,2]
[358070238,1744687839979,-500.0,0.00017896,2]
[358070239,1744687839988,-500.0,0.00017896,2]
[358070240,1744687840000,-500.0,0.00017896,2]
[358070241,1744687840009,-500.0,0.00017896,2]
[358070242,1744687840018,-500.0,0.00017896,2]
[358070243,1744687840027,-156.984525,0.00017896,2]
[358070244,1744687840036,-500.0,0.00017896,2]
[358070245,1744687840046,-559.7902534,0.00017896,2]
[358070246,1744687840055,-500.0,0.00017896,2]
[358070247,1744687840064,-500.0,0.00017896,2]
[358070248,1744687840073,-500.0,0.00017896,2]
[358070249,1744687840082,-500.0,0.00017896,2]
[358070250,1744687840091,-500.0,0.00017896,2]
[358070251,1744687840100,-500.0,0.00017896,2]
[358070252,1744687840109,-164.69062301,0.00017896,2]
[358070253,1744687840118,-500.0,0.00017896,2]
[358070254,1744687840128,-500.0,0.00017896,2]